Cogmind - Beta 13 @@@ ROGUE MODE // 2024.07.03 @ 12:15:52 Player: Minty Result: Self-destructed Performance ------------- Evolutions (1) 500 Regions Visited (3) 600 Robots Destroyed (0) 0 Value Destroyed (0) 0 Prototype IDs (2) 40 Alien Tech Used (0) 0 Bonus (200) 200 TOTAL SCORE: 1340 Bonus ------- Pacifist 200 Cogmind --------- Core Integrity 375/400 Matter 290/300 Energy 125/125 System Corruption 0% Temperature Cool (0) Movement Flying (40) Location -9/Materials Parts ------- > --- POWER (1) -------- Light Ion Engine > --- PROPULSION (2) --- Flight Unit > --- UTILITY (4) ------ Sensor Array > --- WEAPON (2) ------- (None) > --- INVENTORY (5) ---- Light Treads Light Treads Wheel Small Storage Unit ECM Suite Peak State ------------ > --- POWER ------------ Ion Engine > --- PROPULSION ------- Aluminum Leg Aluminum Leg > --- UTILITY ---------- Small Storage Unit > --- WEAPON ----------- Assault Rifle Light Assault Rifle > --- INVENTORY -------- Light Ion Engine Light Treads Light Treads Wheel Compact Wheel Assault Rifle [Rating: 6] Favorites ----------- Power Light Ion Engine Engine Light Ion Engine Propulsion Flight Unit Leg Aluminum Leg Flight Unit Flight Unit Utility Sensor Array Device Sensor Array Storage Small Storage Unit Weapon Maul Ballistic Gun Assault Rifle Impact Weapon Maul Build | -11 -10 -10 -9 ------- Run | Yrd Mat Min Mat Slots Evolved 2 | . . . 2 Power . | . . . . Propulsion . | . . . . Utility 2 | . . . 2 Weapon . | . . . . Parts Attached 5 | . 1 3 1 Power 1 | . 1 . . Engine 1 | . 1 . . Core . | . . . . Reactor . | . . . . Propulsion 1 | . . 1 . Treads . | . . . . Leg . | . . . . Wheel . | . . . . Hover . | . . . . Flight 1 | . . 1 . Utility 2 | . . 2 . Device 2 | . . 2 . Storage . | . . . . Processor . | . . . . Hackware . | . . . . Protection . | . . . . Artifact . | . . . . Weapon 1 | . . . 1 Energy Gun . | . . . . Energy Cannon . | . . . . Ballistic Gun . | . . . . Ballistic Cannon . | . . . . Launcher . | . . . . Special Weapon . | . . . . Impact Weapon 1 | . . . 1 Slashing Weapon . | . . . . Piercing Weapon . | . . . . Special Melee Weapon . | . . . . Unidentified Prototypes . | . . . . Parts Lost . | . . . . Power . | . . . . Propulsion . | . . . . Utility . | . . . . Weapon . | . . . . Highest Loss Streak . | . . . . To Critical Strikes . | . . . . Average Slot Usage (%) 38 | . 52 34 37 Engine 13 | . 14 14 11 Leg 5 | . 28 . . Flight 10 | . . 14 11 Device 6 | . . 6 11 Ballistic Gun 1 | . 7 . . Impact Weapon 1 | . . . 4 Naked Turns . | . . . . Heaviest Build 13 | 13 13 4 7 Greatest Support 20 | 20 20 4 4 Greatest Overweight (x) 1 | . . . 1 Average Overweight (x) . | . . . . Largest Inventory Capacity 8 | . 8 5 5 Average Capacity 5 | . 6 5 5 Most Carried 8 | . 8 5 5 Average Carried 5 | . 5 4 5 Final Capacity 8 | 8 5 5 5 Final Carried 6 | 6 5 5 5 Class Distribution -------------------- 100% | Mutant Dominant Class ---------------- Mutant | -10/Mines Mutant | -9/Materials Resources | -11 -10 -10 -9 ----------- Run | Yrd Mat Min Mat Matter Collected 240 | 200 . 40 . Remotely . | . . . . Salvage Created . | . . . . Parts . | . . . . Haulers Intercepted . | . . . . Recyclers Shooed . | . . . . Parts Field Recycled . | . . . . Retrieved Matter . | . . . . Parts Self-Destructed . | . . . . Prevented . | . . . . Kills | -11 -10 -10 -9 ------- Run | Yrd Mat Min Mat Combat Hostiles Destroyed . | . . . . Classes Destroyed . | . . . . Best Kill Streak . | . . . . Combat Bots Only . | . . . . Max Kills in Single Turn . | . . . . Gunslinging . | . . . . Exploded . | . . . . Melee . | . . . . Uniques/NPCs Destroyed . | . . . . Combat | -11 -10 -10 -9 -------- Run | Yrd Mat Min Mat Hostile Shots Fired 18 | . 11 . 7 Missed 8 | . 4 . 4 Damage Taken 122 | . 83 . 39 Core 58 | . 33 . 25 Absorbed by Shields . | . . . . Core Remaining (%) 93 | 100 . 86 . Volleys Fired . | . . . . Largest . | . . . . Hottest . | . . . . Shots Fired . | . . . . Gun . | . . . . Cannon . | . . . . Launcher . | . . . . Special . | . . . . Kinetic . | . . . . Thermal . | . . . . Explosive . | . . . . Electromagnetic . | . . . . Robot Hit Streak . | . . . . Robot Miss Streak . | . . . . Penetration Max . | . . . . Secondary Targets . | . . . . Shots Hit Robots . | . . . . Core Hits . | . . . . Critical Kills . | . . . . Critical Parts Destroyed . | . . . . Critical Strikes . | . . . . Melee Attacks 6 | . . . 6 Impact 6 | . . . 6 Slashing . | . . . . Piercing . | . . . . Sneak Attacks . | . . . . Combat Hostiles . | . . . . Follow-up Attacks . | . . . . Damage Inflicted . | . . . . Guns . | . . . . Cannons . | . . . . Explosions . | . . . . Melee . | . . . . Ramming . | . . . . Kinetic . | . . . . Thermal . | . . . . Explosive . | . . . . Electromagnetic . | . . . . Impact . | . . . . Slashing . | . . . . Piercing . | . . . . Highest Corruption . | . . . . Average Corruption . | . . . . Corruption Purged . | . . . . Corruption Blocked . | . . . . Overload Shots . | . . . . Overflow Damage . | . . . . Projectiles . | . . . . Explosions . | . . . . Melee . | . . . . Knockbacks . | . . . . Impact . | . . . . Kinetic . | . . . . Secondary . | . . . . Self-Inflicted Damage . | . . . . Shots . | . . . . Rammed . | . . . . Targets Rammed . | . . . . Kicked . | . . . . Crushed . | . . . . Highest Temperature 7 | . 7 . . Average Temperature 7 | . 7 . . Received Heat Transfer 69 | . 63 . 6 Siege Activations . | . . . . Robots Corrupted . | . . . . Combat Hostiles . | . . . . Parts Fried . | . . . . Impact Corruptions . | . . . . Robots Melted . | . . . . Combat Hostiles . | . . . . Parts Melted . | . . . . Heat Transferred . | . . . . Parts Sabotaged . | . . . . Parts Stolen . | . . . . Parts Stripped . | . . . . Power Chain Reactions . | . . . . Alert | -11 -10 -10 -9 ------- Run | Yrd Mat Min Mat Peak Influence 57 | . 23 8 57 Initial 8 | . . 8 2 Average 20 | . 16 8 41 Maximum Alert Level . | . . . . Low Security (%) 100 | . 100 100 100 Level 1 . | . . . . Level 2 . | . . . . Level 3 . | . . . . Level 4 . | . . . . Level 5 . | . . . . High Security . | . . . . Max Security . | . . . . Squads Dispatched 3 | . 1 . 2 Investigation 2 | . . . 2 Extermination . | . . . . Reinforcement 1 | . 1 . . Assault . | . . . . Garrison . | . . . . Intercept . | . . . . Searches Triggered . | . . . . Construction Impeded . | . . . . Haulers Reinforced . | . . . . Active Scanning Responses . | . . . . Cargo Convoy Interrupts . | . . . . Stealth | -11 -10 -10 -9 --------- Run | Yrd Mat Min Mat Distress Signals 1 | . 1 . . Communications Jammed . | . . . . Distress Signals . | . . . . Times Spotted 13 | . 8 . 5 Peak Tracking Total 7 | . 7 . 5 Tactical Retreats . | . . . . Traps | -11 -10 -10 -9 ------- Run | Yrd Mat Min Mat Traps Triggered . | . . . . Indirectly . | . . . . Trap Hack Attempts . | . . . . Triggered . | . . . . Disarmed . | . . . . Reprogrammed . | . . . . Reused . | . . . . Traps Extracted . | . . . . Installed . | . . . . Triggered . | . . . . Machines | -11 -10 -10 -9 ---------- Run | Yrd Mat Min Mat Machines Disabled . | . . . . Max in Single Turn . | . . . . Machines Repaired . | . . . . Machines Dismantled . | . . . . Machines Sabotaged . | . . . . Overloaded Fab Kills . | . . . . Hacking | -11 -10 -10 -9 --------- Run | Yrd Mat Min Mat Machines Accessed 3 | . 1 . 2 Terminals 3 | . 1 . 2 Fabricators . | . . . . Repair Stations . | . . . . Recycling Units . | . . . . Scanalyzers . | . . . . Garrison Access . | . . . . Total Hacks 12 | . 3 . 9 Successful 5 | . 1 . 4 Failed 7 | . 2 . 5 Catastrophic 2 | . 1 . 1 Database Lockouts . | . . . . Manual 5 | . 3 . 2 Terminals 12 | . 3 . 9 Fabricators . | . . . . Repair Stations . | . . . . Recycling Units . | . . . . Scanalyzers . | . . . . Garrison Access . | . . . . Terminal Hacks 4 | . 1 . 3 Prototype ID Bank 1 | . . . 1 Branch Access Points 2 | . 1 . 1 Alert Level 1 | . . . 1 Fabricator Hacks . | . . . . Repair Station Hacks . | . . . . Recycling Unit Hacks . | . . . . Scanalyzer . | . . . . Garrison Access Hacks . | . . . . Unauthorized Hacks 1 | . . . 1 Terminals 1 | . . . 1 Search 1 | . . . 1 Fabricators . | . . . . Repair Stations . | . . . . Recycling Units . | . . . . Scanalyzers . | . . . . Garrison Access . | . . . . Data Cores Recovered . | . . . . Used . | . . . . Hacking Detections 3 | . 1 . 2 Full Trace Events 1 | . . . 1 Feedback Events . | . . . . Feedback Blocked . | . . . . Robot Schematics Acquired . | . . . . Robots Built . | . . . . Authchips . | . . . . Time . | . . . . Total Robot Build Rating . | . . . . Part Schematics Acquired . | . . . . Parts Built . | . . . . Authchips . | . . . . Time . | . . . . Total Part Build Rating . | . . . . Parts Repaired . | . . . . Time . | . . . . Parts Recycled . | . . . . Recycled Matter . | . . . . Retrieved Matter . | . . . . Retrieved Components . | . . . . Parts Scanalyzed . | . . . . Part Schematics Acquired . | . . . . Parts Damaged . | . . . . Bothacking | -11 -10 -10 -9 ------------ Run | Yrd Mat Min Mat Used RIF Installer . | . . . . Robots Hacked . | . . . . Non-combat . | . . . . Combat . | . . . . Robot Hacks Applied . | . . . . Relay Couplers Released . | . . . . Fabnet Peak Effective % . | . . . . Robots Rewired . | . . . . Allies Hacked . | . . . . Hacks Repelled . | . . . . Allies | -11 -10 -10 -9 -------- Run | Yrd Mat Min Mat Total Allies . | . . . . Largest Group . | . . . . Highest-Rated Group . | . . . . Highest-Rated Ally . | . . . . Total Orders . | . . . . Ally Attacks . | . . . . Total Damage . | . . . . Kills . | . . . . Allies Corrupted . | . . . . Allies Melted . | . . . . Intel | -11 -10 -10 -9 ------- Run | Yrd Mat Min Mat Robot Analysis Total . | . . . . Derelict Logs Recovered 1 | . . 1 . Drone Launches . | . . . . Drone Recoveries . | . . . . Exploration | -11 -10 -10 -9 ------------- Run | Yrd Mat Min Mat Turns Passed 220 | . 41 108 71 Spaces Moved 393 | 1 46 241 105 Core 40 | . 30 10 . Treads . | . . . . Legs 17 | 1 16 . . Wheels . | . . . . Hover . | . . . . Flight 336 | . . 231 105 Fastest Speed 40 | 120 50 40 40 Average Speed 46 | 120 74 40 47 Slowest Speed 120 | 120 120 50 120 Overloaded Moves . | . . . . Propulsion Burnouts . | . . . . Robots Hopped 3 | . . . 3 Cave-ins Triggered . | . . . . Exploration Rate (%) 25 | 2 15 69 16 Regions Visited 3 Branch Regions 1 Pre-discovered Areas 1 | . . 1 . Known Exits Taken 1 | . 1 . . Unknown Exits Taken 2 | 1 . 1 . Scrap Searched 3 | . . 3 . Spaces Dug 6 | . . . 6 Terrain Destroyed 6 | . . . 6 Melee 6 | . . . 6 Projectile . | . . . . AOE . | . . . . Terrain Rammed . | . . . . Walls Destroyed . | . . . . Machines Disabled . | . . . . Actions | -11 -10 -10 -9 --------- Run | Yrd Mat Min Mat Total 417 | . 56 251 110 Wait 3 | . . 3 . Move 384 | . 45 240 99 Hop 3 | . . . 3 Pick Up 2 | . 1 1 . Fast Attach 5 | . 1 3 1 Attach . | . . . . Detach 3 | . 3 . . Swap . | . . . . Drop 11 | . 6 4 1 Fire . | . . . . Melee 6 | . . . 6 Ram . | . . . . Kick . | . . . . Crush . | . . . . Escape Stasis . | . . . . Rewire . | . . . . Trap . | . . . . Miscellaneous . | . . . . Route ------- -11/Scrapyard -10/Materials -10/Mines -9/Materials (discovered 2 exits: Min x2) History --------- Turn | Location | Event 1 | -11/Scrapyard | Discovered new exit (range 0) 1 | -11/Scrapyard | Entered Materials 30 | -10/Materials | Identified exit to Mines 42 | -10/Materials | Entered Mines 134 | -10/Mines | Learned location of Storage (-8) 148 | -10/Mines | Discovered new exit (range 6) 150 | -10/Mines | Entered Materials 150 | -9/Materials | Evolved 2 slots: Utility x2 165 | -9/Materials | Identified exit to Mines 221 | -9/Materials | Self-destructed Last Messages --------------- Map updated. >>Prototypes Downloading prototype IDs... Imp. Assault Rifle Adv. Beam Rifle >>Alert(Check) Current Alert Level: Low Security >>Force(Search) SEARCH_COMPLETE[2] DISCOVERED[2xTerminal] COORDINATES_EXTRACTED 00165_ ALERT: Suspicious activity at Terminal M012. Dispatching Investigation squad. 00174_ K-01 Serf collects debris. 00182_ Acquired Maul. 00213_ Dropped Maul. 00215_ Connecting with Terminal... 00215_ ALERT: Suspicious activity at Terminal M011. Dispatching Investigation squad. 00220_ O-16 Technician: "IFF HANDSHAKE FAILED. SECURING TERMINAL." Map ----- +----------------------------------------------------+ | ????????????????????????????????????????##### #? | | ????????????????????????????????????????????# #? | | ????????????????????????????????????????????# #? | | ????????????????????????????????????????????# #? | | ????????????????????????????????????????????# #? | | ????????????????????????????????????????????# #? | | ????????????????????????????????????????????# #? | | ????????????????????????????????????????????# #? | | ??????????????????????????????????#######???# #? | | ??????????????????????????????????# ???# #? | | ?????????????????????????? ?????# ??# #? | | ?????????????????????????? #????# ?## ## | | ?????????????????????????? #????# # ] # | | ?????????????????????????? #????# # # | | ?????????????????????????# #????# + T # | | ?????????????????????????# #????# # # | | ?????????????????????????# #????# # # | | ?????????????????????????# #????# ?#### # | | ?????????????????????????# #????########????# # | | ???????????????########??# #????????????????# # | | ???????????????# ??# #????????# ????# # | | ???????????????# ?# ####?????# ""???# # | | ???????????????# o *?# !##????# ""???# # | | ???????????????# k # !#????# """??# # | | ???????????????# *** # !#????# ??# # | | ???????????????# *** @ !#????# """ ## # | | ???????????????# *** # !#????# """ # | | ???????????????# Y # !##????# """ + | | ???????????????## ######## ####?????# # | | ??????????????########### #???????# """ # | | ??????????????# #???????# """?## # | | ??????????????# T #???????# """??# # | | ??????????????# #???????# ???# # | | ??????????????+ ####### #??????######???# # | | ??????????????# ???????#/######??????# ##### # | | ???????????????????????## ##?????????# | | ????????????????????????## ##????????# | | ?????????????????????????## ###??????# ##+##### | | ??????????????????????????##""######### ## #? | | ???????????????????????????## """ # ## #? | | ????????????????????????????# """"" + ## #? | | ????????????????????????????# """"" # / !!!#? | | ????????????????????????????# """"" / ## !!!#? | | ????????????????????????????# """ ##### !! #? | | ????????????????????????????# #???# #? | | ????????????????????????????# #???#######? | | ????????????????????????????# #??????????? | | ????????????????????????????###########??????????? | | ?????????????????????????????????????????????????? | | | +----------------------------------------------------+ Best States ------------- Heat Dissipation 28 Energy Generation 10 Energy Capacity 250 Matter Stores 300 Matter Capacity 300 Sight Range 16 Robot Scan Range 14 Terrain Scan Density 10 Evasion (%) 62 Item Schematics ----------------- None Robot Schematics ------------------ None Fabricated ------------ Nothing Alien Tech Used ----------------- None Achievements -------------- None Challenges ------------ None Game ------ Seed DefenseIntegratedCloak Manual? 0 Play Time 00:03:06 Cumulative 780.0 hours Start 2024.07.03 @ 11:53:20 End 2024.07.03 @ 12:15:52 Sessions 3 Manual Loads 0 Difficulty Rogue Special Mode None Game No. 891 Rogue 613 Adventurer 124 Explorer 154 Win Type - Total 31 Types 25/0/4/1/0/0/0/1/0 Lore% 84 Gallery% 92 Achievement% 77 Wizard Run 0 Options --------- Layout 0 ASCII 0 Keyboard 1 Movement Numpad Keybinds 0 Fullscreen 2 Font 18/Terminus Map View 76x50 Zoom Use 0% Tactical HUD 1 Map Filters NONE Filters NONE Steam 1 RUN: 2d8a9b89-decc-4b51-ad57-c40b7e5a9a8a